Cogmind - Beta 16.1 @@@ ROGUE MODE // 2026.04.06 @ 22:26:45 Player: WitherScout Result: Smashed by cave-in Performance ------------- Evolutions (1) 500 Regions Visited (5) 1000 Robots Destroyed (4) 20 Value Destroyed (131) 131 Prototype IDs (2) 40 Alien Tech Used (0) 0 Bonus (576) 576 TOTAL SCORE: 2267 Bonus ------- Met Imprinter 300 Was Imprinted 300 Friendly Fire -24 Cogmind --------- Core Integrity 0/400 Matter 174/300 Energy 100/100 System Corruption 30% Temperature Cool (0) Movement Core (50) Location -7/Zion Parts ------- > --- POWER (1) -------- (None) > --- PROPULSION (2) --- (None) > --- UTILITY (4) ------ (None) > --- WEAPON (2) ------- (None) > --- INVENTORY (5) ---- (None) Peak State ------------ > --- POWER ------------ Light Nuclear Core > --- PROPULSION ------- Light Treads Light Treads > --- UTILITY ---------- Small Storage Unit Medium Matter Pod Tactical Coordination Suite Hacking Drone Bay > --- WEAPON ----------- Assault Rifle Light Assault Rifle > --- INVENTORY -------- Nuclear Core Signal Interpreter Improved Shield Generator Mobile Refinery Mk. CCLXVII Medium Laser Grenade Launcher Chainsword CR-A16's Pointy Stick [Rating: 25] Favorites ----------- Power Light Nuclear Core Engine Ion Engine Power Core Light Nuclear Core Propulsion Light Treads Treads Light Treads Wheel Wheel Utility Small Storage Unit Device Tactical Coordination Suite Storage Small Storage Unit Protection Propulsion Shielding Weapon Light Assault Rifle Energy Gun Medium Laser Ballistic Gun Light Assault Rifle Launcher Grenade Launcher Slashing Weapon Chainsword Piercing Weapon CR-A16's Pointy Stick Build | -11 -10 -10 -9 -9 -7 ------- Run | Yrd Mat Min Mat Min Zio Slots Evolved 2 | . . . 2 . . Power . | . . . . . . Propulsion . | . . . . . . Utility 2 | . . . 2 . . Weapon . | . . . . . . Parts Attached 19 | 6 2 1 2 . 8 Power 2 | 1 . 1 . . . Engine 1 | 1 . . . . . Core 1 | . . 1 . . . Reactor . | . . . . . . Propulsion 4 | 2 . . . . 2 Treads 2 | . . . . . 2 Leg . | . . . . . . Wheel 2 | 2 . . . . . Hover . | . . . . . . Flight . | . . . . . . Utility 7 | 1 . . 2 . 4 Device 4 | . . . . . 4 Storage 2 | 1 . . 1 . . Processor . | . . . . . . Hackware . | . . . . . . Protection 1 | . . . 1 . . Artifact . | . . . . . . Weapon 6 | 2 2 . . . 2 Energy Gun 1 | 1 . . . . . Energy Cannon . | . . . . . . Ballistic Gun 2 | 1 1 . . . . Ballistic Cannon . | . . . . . . Launcher 1 | . 1 . . . . Special Weapon . | . . . . . . Impact Weapon . | . . . . . . Slashing Weapon 1 | . . . . . 1 Piercing Weapon 1 | . . . . . 1 Special Melee Weapon . | . . . . . . Unidentified Prototypes 2 | . . . . . 2 Parts Lost 16 | . . . . . 16 Power 2 | . . . . . 2 Propulsion 2 | . . . . . 2 Utility 6 | . . . . . 6 Weapon 6 | . . . . . 6 Highest Loss Streak 4 | . . . . . 4 To Critical Strikes . | . . . . . . Average Backups 6 | 1 7 8 7 8 6 Power . | . 1 1 1 1 . Propulsion . | 1 3 3 2 3 . Utility 1 | . . 2 1 2 2 Weapon 2 | . 1 2 2 2 2 Tool/Special . | . . . . . . Unused Backups 6 | . 2 . . . 4 Power 1 | . . . . . 1 Propulsion 3 | . 2 . . . 1 Utility 2 | . . . . . 2 Weapon . | . . . . . . Tool/Special . | . . . . . . Average Slot Usage (%) 81 | . 85 85 78 88 81 Engine 1 | . 14 10 . . . Core 7 | . . 3 11 11 8 Treads 13 | . . . . . 16 Wheel 4 | . 28 28 22 22 . Device 15 | . . . . . 17 Storage 16 | . 14 14 13 22 17 Energy Gun 1 | . 2 . . . 1 Ballistic Gun 19 | . 25 28 22 22 18 Peak Build Rating 25 | 6 6 8 10 10 25 Average Rating 17 | 4 6 6 9 10 19 On Entrance 6 | . 6 6 8 10 10 Avg Prop Armor Cover (%) . | . . . . . . Naked Turns 118 | . . . . . 118 Heaviest Build 23 | 13 13 13 16 16 23 Greatest Support 40 | 20 20 20 20 20 40 Greatest Overweight (x) 2 | 1 . . . . 2 Average Overweight (x) . | . . . . . . Largest Inventory Capacity 8 | 8 8 8 8 8 8 Average Capacity 7 | 7 8 8 8 8 7 Most Carried 8 | 5 8 8 8 8 8 Average Carried 6 | 2 7 8 7 8 6 Final Capacity 8 | 8 8 8 8 8 5 Final Carried 8 | 5 8 8 8 8 . Class Distribution -------------------- 100% | Mutant Dominant Class ---------------- Mutant | -10/Materials Mutant | -10/Mines Mutant | -9/Materials Mutant | -9/Mines Mutant | -7/Zion Resources | -11 -10 -10 -9 -9 -7 ----------- Run | Yrd Mat Min Mat Min Zio Matter Collected 550 | 197 43 75 19 . 216 Remotely . | . . . . . . Salvage Created 182 | . 43 75 19 . 45 Parts 8 | . 1 4 2 . 1 Haulers Intercepted . | . . . . . . Recyclers Shooed . | . . . . . . Parts Field Recycled . | . . . . . . Retrieved Matter . | . . . . . . Parts Self-Destructed 1 | . . . . . 1 Prevented . | . . . . . . Parts Restored . | . . . . . . Kills | -11 -10 -10 -9 -9 -7 ------- Run | Yrd Mat Min Mat Min Zio Combat Hostiles Destroyed 3 | . 1 2 . . . Guns 3 | . 1 2 . . . Classes Destroyed 2 | . 1 . 1 . . Operator 1 | . . . 1 . . Grunt 3 | . 1 2 . . . Best Kill Streak 2 | . 1 2 1 . . Combat Bots Only 2 | . 1 2 . . . Max Kills in Single Turn 1 | . 1 1 1 . . Gunslinging . | . . . . . . Exploded . | . . . . . . Melee . | . . . . . . Uniques/NPCs Destroyed . | . . . . . . Combat | -11 -10 -10 -9 -9 -7 -------- Run | Yrd Mat Min Mat Min Zio Hostile Shots Fired 32 | . 3 18 11 . . Missed 8 | . 1 3 4 . . Hits 24 | . 2 15 7 . . Projectile 24 | . 2 15 7 . . Critical Strikes 1 | . . 1 . . . Damage Taken 2103 | . 22 199 68 . 1814 Core 486 | . 12 59 8 . 407 Absorbed by Shields 68 | . . . . . 68 Redirected to Shielding 8 | . . . 8 . . Core Remaining (%) 85 | 100 . 71 . . . Volleys Fired 38 | . 6 9 3 . 20 Largest 2 | . 2 2 2 . 2 Hottest 40 | . 40 40 40 . 40 Shots Fired 59 | . 12 18 6 . 23 Gun 41 | . 12 18 6 . 5 Cannon . | . . . . . . Launcher 18 | . . . . . 18 Special . | . . . . . . Kinetic 41 | . 12 18 6 . 5 Thermal . | . . . . . . Explosive 18 | . . . . . 18 Electromagnetic . | . . . . . . Robot Hit Streak 7 | . 3 6 2 . 7 Robot Miss Streak 2 | . 2 2 2 . . Penetration Max . | . . . . . . Secondary Targets . | . . . . . . Shots Hit Robots 28 | . 7 13 3 . 5 Core Hits 12 | . 2 6 2 . 2 Critical Kills . | . . . . . . Critical Parts Destroyed . | . . . . . . Critical Strikes . | . . . . . . Melee Attacks . | . . . . . . Impact . | . . . . . . Slashing . | . . . . . . Piercing . | . . . . . . Sneak Attacks . | . . . . . . Combat Hostiles . | . . . . . . Follow-up Attacks . | . . . . . . Damage Inflicted 325 | . 78 160 26 . 61 Guns 316 | . 78 160 26 . 52 Cannons . | . . . . . . Explosions 9 | . . . . . 9 Melee . | . . . . . . Ramming . | . . . . . . Kinetic 316 | . 78 160 26 . 52 Thermal . | . . . . . . Explosive 9 | . . . . . 9 Electromagnetic . | . . . . . . Impact . | . . . . . . Slashing . | . . . . . . Piercing . | . . . . . . Highest Corruption 30 | . . . . . 30 Average Corruption 18 | . . . . . 18 Corruption Purged . | . . . . . . Corruption Blocked . | . . . . . . Effects 29 | . . . . . 29 Message Errors 7 | . . . . . 7 Matter Fused 6 | . . . . . 6 Heat Flow Errors 6 | . . . . . 6 Energy Discharges 6 | . . . . . 6 Data Loss (minor) 2 | . . . . . 2 Data Loss (major) 1 | . . . . . 1 Misfires 1 | . . . . . 1 Overload Shots . | . . . . . . Overflow Damage . | . . . . . . Projectiles . | . . . . . . Explosions . | . . . . . . Melee . | . . . . . . Knockbacks . | . . . . . . Impact . | . . . . . . Kinetic . | . . . . . . Secondary . | . . . . . . Self-Inflicted Damage 36 | . . . . . 36 Shots 2 | . . . . . 2 Rammed . | . . . . . . Targets Rammed . | . . . . . . Kicked . | . . . . . . Crushed . | . . . . . . Highest Temperature 163 | . . 27 . . 163 Average Temperature 50 | . . 10 . . 74 Received Heat Transfer 129 | . 12 117 . . . Siege Activations . | . . . . . . Martial Activations . | . . . . . . Shielding Activations . | . . . . . . Robots Disrupted . | . . . . . . Combat Hostiles . | . . . . . . Robots Corrupted . | . . . . . . Combat Hostiles . | . . . . . . Parts Fried . | . . . . . . Impact Corruptions . | . . . . . . Robots Melted . | . . . . . . Combat Hostiles . | . . . . . . Parts Melted . | . . . . . . Heat Transferred . | . . . . . . Parts Sabotaged . | . . . . . . Parts Stolen . | . . . . . . Parts Stripped . | . . . . . . Power Chain Reactions . | . . . . . . Alert | -11 -10 -10 -9 -9 -7 ------- Run | Yrd Mat Min Mat Min Zio Maximum Alert Level . | . . . . . . Low Security (%) 100 | 100 100 100 100 100 . Level 1 . | . . . . . . Level 2 . | . . . . . . Level 3 . | . . . . . . Level 4 . | . . . . . . Level 5 . | . . . . . . High Security . | . . . . . . Max Security . | . . . . . . Peak Influence 50 | . 30 50 11 . . Initial 11 | . . . 11 . . Average 4 | . 3 13 2 . . Influence Increases 96 | . 30 50 9 . 7 Destroy 0b10 Robot/C 60 | . 20 40 . . . Destroy 0b10 Robot/NC 10 | . . . 5 . 5 Destroy Leader 20 | . 10 10 . . . Allied During Kill 2 | . . . . . 2 Successful Hack 4 | . . . 4 . . Influence Decreases 96 | . 30 20 39 . 7 Entered New Map 19 | . . . 19 . . Time Decay 77 | . 30 20 20 . 7 Squads Dispatched 3 | . 1 . 2 . . Investigation . | . . . . . . Extermination . | . . . . . . Reinforcement 3 | . 1 . 2 . . Assault . | . . . . . . Garrison . | . . . . . . Intercept . | . . . . . . Searches Triggered . | . . . . . . Construction Impeded . | . . . . . . Haulers Reinforced . | . . . . . . Active Scanning Responses . | . . . . . . Cargo Convoy Interrupts . | . . . . . . Stealth | -11 -10 -10 -9 -9 -7 --------- Run | Yrd Mat Min Mat Min Zio Distress Signals . | . . . . . . Communications Jammed . | . . . . . . Distress Signals . | . . . . . . Times Spotted 18 | . 3 5 10 . . Peak Tracking Total 10 | . 1 3 10 . . Tactical Retreats . | . . . . . . Traps | -11 -10 -10 -9 -9 -7 ------- Run | Yrd Mat Min Mat Min Zio Traps Triggered . | . . . . . . Indirectly . | . . . . . . Trap Hack Attempts . | . . . . . . Triggered . | . . . . . . Disarmed . | . . . . . . Reprogrammed . | . . . . . . Reused . | . . . . . . Traps Extracted . | . . . . . . Installed . | . . . . . . Triggered . | . . . . . . Machines | -11 -10 -10 -9 -9 -7 ---------- Run | Yrd Mat Min Mat Min Zio Machines Disabled . | . . . . . . Max in Single Turn . | . . . . . . Machines Repaired . | . . . . . . Machines Dismantled . | . . . . . . Machines Sabotaged . | . . . . . . Overloaded Fab Kills . | . . . . . . Hacking | -11 -10 -10 -9 -9 -7 --------- Run | Yrd Mat Min Mat Min Zio Machines Accessed 3 | . 2 . 1 . . Terminals 3 | . 2 . 1 . . Fabricators . | . . . . . . Repair Stations . | . . . . . . Recycling Units . | . . . . . . Scanalyzers . | . . . . . . Garrison Access . | . . . . . . Total Hacks 6 | . 4 . 2 . . Successful 2 | . 1 . 1 . . Failed 4 | . 3 . 1 . . Catastrophic . | . . . . . . Database Lockouts . | . . . . . . Manual 5 | . . . . . 5 Terminals 6 | . 4 . 2 . . Fabricators . | . . . . . . Repair Stations . | . . . . . . Recycling Units . | . . . . . . Scanalyzers . | . . . . . . Garrison Access . | . . . . . . Terminal Hacks 2 | . 1 . 1 . . Emergency Access Points 1 | . . . 1 . . Patrol Status 1 | . 1 . . . . Fabricator Hacks . | . . . . . . Repair Station Hacks . | . . . . . . Recycling Unit Hacks . | . . . . . . Scanalyzer . | . . . . . . Garrison Access Hacks . | . . . . . . Unauthorized Hacks . | . . . . . . Terminals . | . . . . . . Fabricators . | . . . . . . Repair Stations . | . . . . . . Recycling Units . | . . . . . . Scanalyzers . | . . . . . . Garrison Access . | . . . . . . Data Cores Recovered . | . . . . . . Used . | . . . . . . Hacking Detections 3 | . 2 . 1 . . Full Trace Events . | . . . . . . Feedback Events . | . . . . . . Feedback Blocked . | . . . . . . Robot Schematics Acquired 3 | . . . . . 3 Robots Built . | . . . . . . Authchips . | . . . . . . Time . | . . . . . . Total Robot Build Rating . | . . . . . . Part Schematics Acquired 15 | . . . . . 15 Parts Built . | . . . . . . Authchips . | . . . . . . Time . | . . . . . . Total Part Build Rating . | . . . . . . Part Studies Acquired . | . . . . . . Parts Repaired . | . . . . . . Time . | . . . . . . Parts Recycled . | . . . . . . Recycled Matter . | . . . . . . Retrieved Matter . | . . . . . . Retrieved Components . | . . . . . . Parts Scanalyzed . | . . . . . . Part Schematics Acquired . | . . . . . . Parts Damaged . | . . . . . . Bothacking | -11 -10 -10 -9 -9 -7 ------------ Run | Yrd Mat Min Mat Min Zio Used RIF Installer . | . . . . . . Robots Hacked . | . . . . . . Non-combat . | . . . . . . Combat . | . . . . . . Robot Hacks Applied . | . . . . . . Relay Couplers Released . | . . . . . . Fabnet Peak Effective % . | . . . . . . Robots Rewired . | . . . . . . Allies Hacked . | . . . . . . Hacks Repelled . | . . . . . . Allies | -11 -10 -10 -9 -9 -7 -------- Run | Yrd Mat Min Mat Min Zio Total Allies 11 | . . . . 2 9 Largest Group 9 | . . . . 2 9 Highest-Rated Group 288 | . . . . 52 288 Highest-Rated Ally 41 | . . . . 31 41 Total Orders . | . . . . . . Ally Attacks . | . . . . . . Total Damage . | . . . . . . Kills . | . . . . . . Allies Corrupted 4 | . . . . . 4 Allies Melted . | . . . . . . Intel | -11 -10 -10 -9 -9 -7 ------- Run | Yrd Mat Min Mat Min Zio Active Infowar (turns) . | . . . . . . Robot Analysis Total . | . . . . . . Derelict Logs Recovered 2 | . . . . . 2 Drone Launches 1 | . . . . . 1 Drone Recoveries . | . . . . . . Exploration | -11 -10 -10 -9 -9 -7 ------------- Run | Yrd Mat Min Mat Min Zio Turns Passed 3543 | 52 168 114 126 50 3033 Spaces Moved 1569 | 48 152 109 141 50 1069 Core 8 | 3 . . . . 5 Treads 966 | . . . . . 966 Legs . | . . . . . . Wheels 595 | 45 152 109 141 50 98 Hover . | . . . . . . Flight . | . . . . . . Fastest Speed 50 | 50 80 80 80 80 80 Average Speed 129 | 79 80 80 80 80 152 Slowest Speed 160 | 100 80 80 80 80 160 Overloaded Moves . | . . . . . . Propulsion Burnouts . | . . . . . . Robots Hopped . | . . . . . . Potential Cave-ins 12 | . . . . . 12 Cave-ins Triggered 19 | . . . . . 19 Exploration Rate (%) 32 | 3 35 28 23 19 87 Regions Visited 5 Branch Regions 3 Pre-discovered Areas 1 | . . . . . 1 Known Exits Taken . | . . . . . . Unknown Exits Taken 5 | 1 1 1 1 1 . Scrap Searched 3 | . . . . . 3 Spaces Dug 73 | . . . . . 73 Terrain Destroyed 125 | . . . . . 125 Melee . | . . . . . . Projectile . | . . . . . . AOE 125 | . . . . . 125 Terrain Rammed . | . . . . . . Walls Destroyed . | . . . . . . Machines Disabled . | . . . . . . Actions | -11 -10 -10 -9 -9 -7 --------- Run | Yrd Mat Min Mat Min Zio Total 3022 | 58 188 119 148 59 2450 Wait 1366 | . 18 . . 10 1338 Move 1564 | 47 151 108 140 49 1069 Hop . | . . . . . . Pick Up 18 | 5 6 . 2 . 5 Fast Attach 10 | 6 1 . 1 . 2 Attach 8 | . . . 1 . 7 Detach 1 | . 1 . . . . Swap 5 | . 1 1 . . 3 Drop 12 | . 4 1 1 . 6 Fire 38 | . 6 9 3 . 20 Melee . | . . . . . . Ram . | . . . . . . Kick . | . . . . . . Crush . | . . . . . . Escape Stasis . | . . . . . . Rewire . | . . . . . . Trap . | . . . . . . Miscellaneous . | . . . . . . Route ------- -11/Scrapyard -10/Materials -10/Mines -9/Materials -9/Mines -7/Zion (discovered 1 exit: [*Pro]) History --------- Turn | Location | Event 13 | -11/Scrapyard | Discovered new exit (range 16) 53 | -11/Scrapyard | Entered Materials 192 | -10/Materials | Discovered new exit (range 16) 221 | -10/Materials | Entered Mines 323 | -10/Mines | Build established: Mutant 323 | -10/Mines | Discovered new exit (range 15) 329 | -10/Mines | Assembled infested the area 335 | -10/Mines | Entered Materials 335 | -9/Materials | Evolved 2 slots: Utility x2 423 | -9/Materials | Discovered new exit (range 12) 461 | -9/Materials | Entered Mines 497 | -9/Mines | A Derelict revealed a hidden shortcut to a safe place 511 | -9/Mines | Entered Zion 511 | -7/Zion | Accompanied by 2 allies 537 | -7/Zion | Learned location of 1 exit from Proximity Caves 542 | -7/Zion | Given the Hacking Drone Bay 542 | -7/Zion | Found Prototype Device 542 | -7/Zion | Identified Hacking Drone Bay 561 | -7/Zion | Led the pair of lost Derelicts to a safe place 574 | -7/Zion | Received a visual enhancement algorithm 575 | -7/Zion | Ran a visual enhancement algorithm 588 | -7/Zion | Discovered new exit (range 9) 1005 | -7/Zion | Met Imprinter 1039 | -7/Zion | Imprinted 1042 | -7/Zion | Declared Zion's savior 1533 | -7/Zion | Found CR-A16's Pointy Stick 1598 | -7/Zion | Ran a visual enhancement algorithm 1878 | -7/Zion | Learned 4 Factory zone layouts 1911 | -7/Zion | Found Prototype Device 1912 | -7/Zion | Identified Mobile Refinery Mk. CCLXVII 2337 | -7/Zion | Gained Derelict followers 2793 | -7/Zion | Crushed by falling debris 2795 | -7/Zion | Crushed by falling debris 2826 | -7/Zion | Lost 4 parts (1p2u1w) 2833 | -7/Zion | Crushed by falling debris 2848 | -7/Zion | Crushed by falling debris 2848 | -7/Zion | System corruption reached 10% 2851 | -7/Zion | Crushed by falling debris 2851 | -7/Zion | Core integrity fell below 50% 2876 | -7/Zion | Lost 5 allies 2879 | -7/Zion | Lost 3 parts (2n1u) 2889 | -7/Zion | Crushed by falling debris 2983 | -7/Zion | Crushed by falling debris 2995 | -7/Zion | Crushed by falling debris 3008 | -7/Zion | Crushed by falling debris 3039 | -7/Zion | Lost 4 parts (1p2u1w) 3175 | -7/Zion | Crushed by falling debris 3221 | -7/Zion | Crushed by falling debris 3258 | -7/Zion | Crushed by falling debris 3300 | -7/Zion | Crushed by falling debris 3355 | -7/Zion | Crushed by falling debris 3399 | -7/Zion | Crushed by falling debris 3425 | -7/Zion | Crushed by falling debris 3425 | -7/Zion | Core integrity fell below 20% 3437 | -7/Zion | Crushed by falling debris 3437 | -7/Zion | System corruption reached 30% 3468 | -7/Zion | Lost 4 parts (1u3w) 3492 | -7/Zion | Crushed by falling debris 3545 | -7/Zion | Crushed by falling debris 3545 | -7/Zion | Smashed by cave-in Last Messages --------------- 03399_ System corrupted by crushing effect (+1). 03399_ Lgt. Assault Rifle destroyed. 03399_ System corrupted by crushing effect (+5). 03424_ System corrupted: Heat flow error (+150). 03425_ The unstable cave ceiling collapses. 03425_ Crushed by falling debris. 03425_ Chainsword destroyed. 03425_ System corrupted by crushing effect (+2). 03437_ The unstable cave ceiling collapses. 03437_ Crushed by falling debris. 03437_ CR-A16's Pointy Stick destroyed. 03437_ System corrupted by crushing effect (+2). 03458_ System corrupted: Matter fused (-7). 03476_ System corrupted: Energy discharge (-28). 03492_ The unstable cave ceiling collapses. 03492_ Crushed by falling debris. 03496_ System corrupted: Heat flow error (+164). 03533_ System corrupted: Energy discharge (-25). 03545_ The unstable cave ceiling collapses. 03545_ Crushed by falling debris. Map ----- +----------------------------------------------------+ | """"""" """""" """" """""""#""""" | | """###"" """" """ """ """"""""" "#" | | """#??#" """"" " "" """ """ | | ""#??""" """""""""""" " " "" | | ""#???""" """"""""" " "" "" | | "##????" " | | """"##?"" " | | """""##"" " | | " """"" """#"" | | """"" """"""" """ | | """ """"#"#""" """""""""""""""""" | | """" """#####"" """####""""##"#"""" | | """" "" """#???##"" ""#??###########"" | | """"" "" """#???#""""""""#"????????????##"" | | """" "" ""##???###"#"######???????????#""" | | """" "" #""##????#####????????????????#""" | | """"" """"#?????#####???????????????##" | | ""#"" """ """"####### # ###??????????????#" | | """"" """ """ # # # #????????????###" | | """ """ """ # ##???????????#""" | | # # # # ###?????????##"" | | ### ## #??????????#"" | | "" # # # # # #??????????#""" | | "" " " " # # ###### ##??????????#"#"" | | """ "" ""## # ### # #??????????###"" | | " """ "" """"##### ##@### #????????????##" | | " """ "" #"""#???######## ##???????????##"" | | " " #""##???????# ## #????????????#""" | | "" ""##????????### #????????????#"" | | !""" ""##?????????######????????????#" | | = """""" """#??????????????????????????##" | | """"" """#??????????????????????????#"" | | """" """###????????????????????????##" | | """ """#????????????????????????#"" | | "" ""##???????????????????????#"#" | | ""####?????????????????????#""" | | """" """"#"##??????????#######???##"""" | | """"" """""""#????????###"""#"#?####"""" | | """"""" " """#???????##""""""####""##""" | | """ " ""####?####"""" """""""##""" | | ""##""###"#"#"" """" """""" | | """"""""""""""""" """ """"" | | " | | " | | " " | | " """""" """""#"""##""""" "" " | | " """"" """""""""""""""" "" " | | " ""#""" """"""""""""#""" "" | | """""" ""#""""""""#"" """ ## | | """""" """""" """" "" # | +----------------------------------------------------+ Best States ------------- Heat Dissipation 28 Energy Generation 14 Energy Capacity 250 Matter Stores 400 Matter Capacity 400 Sight Range 16 Terrain Scan Density 10 Propulsion Shielding 33 Evasion (%) 44 Recoil Reduction 2 Item Schematics ----------------- EM Disruption Field | -7/Zion | Archive Power Amplifier | -7/Zion | Archive Adv. Signal Interpreter | -7/Zion | Archive Flak Gun | -7/Zion | Archive Thermic Laser | -7/Zion | Archive System Restoration Module | -7/Zion | Archive Lrn. Proton Cannon | -7/Zion | Archive Fission Core | -7/Zion | Archive Core Analyzer | -7/Zion | Archive Kinecellerator | -7/Zion | Archive Phase Cannon | -7/Zion | Archive Gauss Cannon | -7/Zion | Archive Arm. Leg | -7/Zion | Archive Shock Absorption System | -7/Zion | Archive Hyp. Gauss Cannon | -7/Zion | Archive Robot Schematics ------------------ Y-54 Guardian | -7/Zion | Archive L-41 Fighter | -7/Zion | Archive M-28 Smith | -7/Zion | Archive Fabricated ------------ Nothing Repaired ---------- Nothing Studied --------- None Alien Tech Used ----------------- None Achievements -------------- None Challenges ------------ None Game ------ Seed TransportGlidesysFilter Manual? 0 Play Time 00:31:08 Cumulative 59.9 hours Start 2026.04.06 @ 21:58:26 End 2026.04.06 @ 22:26:45 Sessions 1 Manual Loads 0 Difficulty Rogue Special Mode None Game No. 97 Rogue 97 Adventurer 0 Explorer 0 Win Type - Total 0 Types 0/0/0/0/0/0/0/0/0/0 Lore% 16 Gallery% 30 Achievement% 21 Wizard Run 0 Options --------- Layout 1 ASCII 1 Keyboard 0 Movement Numpad Keybinds 0 Fullscreen 1 Font 24/Cog Map View 50x35 Zoom Use 0% Tactical HUD 1 Map Filters NONE Filters NONE Steam 0 RUN: f9cc0b7b-065d-4cb0-a969-1326da5de328